bitfinex/quotes_ETHUSD_20230830
["timestamp","ask_amount","ask_price","bid_price","bid_amount"]
[1693408023366,12.3303672,1703.5,1703.1,5.8715]
[1693408023517,0.5897472,1703.5,1703.1,13.117486]
[1693408023718,0.5897472,1703.5,1703.1,18.989126]
[1693408024067,0.5897472,1703.5,1703.4,17.61183]
[1693408025844,0.5897472,1703.5,1703.4,23.73183]
[1693408026251,0.001,1703.5,1703.4,23.73183]
[1693408026428,0.001,1703.5,1703.4,26.8921]
[1693408026621,0.51969558,1703.5,1703.4,26.8921]
[1693408027687,0.001,1703.5,1703.4,26.8921]
[1693408027834,0.001,1703.5,1703.4,11.74122]
[1693408028333,0.51969558,1703.5,1703.4,11.74122]
[1693408028893,0.51969558,1703.5,1703.3,7.87092]
[1693408029179,15.13369623,1703.5,1703.0,2.0]
[1693408029337,15.13369623,1703.5,1703.0,7.87189]
[1693408029543,17.23407285,1703.5,1703.0,7.87189]
[1693408030195,0.51969558,1703.5,1703.2,2.0]
[1693408030358,0.51969558,1703.5,1703.3,5.87095]
[1693408030559,0.51969558,1703.5,1703.2,7.87106]
[1693408030881,6.38996558,1703.5,1703.2,5.87106]
[1693408031107,21.00397623,1703.5,1703.0,2.0]
[1693408031244,2.10039762,1703.4,1702.9,2.4731]
[1693408031451,5.87098,1703.3,1702.9,8.34513]
[1693408031649,11.74156,1703.4,1702.9,14.21727]
[1693408032379,2.69269558,1703.5,1703.2,17.61376]
[1693408032558,2.69269558,1703.5,1703.4,5.87061]
[1693408033089,0.51969558,1703.5,1703.4,5.87061]
[1693408033387,0.51969558,1703.5,1703.4,11.74122]
[1693408034480,0.51969558,1703.5,1703.4,5.87061]
[1693408035885,0.51969558,1703.5,1703.3,15.502926]
[1693408036052,0.51969558,1703.5,1703.3,5.87081]
[1693408036887,0.51969558,1703.5,1703.2,5.87108]
[1693408037089,0.51969558,1703.5,1703.1,7.87156]
[1693408037259,7.61596714,1703.5,1703.1,2.0]
[1693408037457,13.48624714,1703.5,1703.1,2.0]
[1693408037658,0.51969558,1703.5,1703.1,19.61489]
[1693408038070,0.51969558,1703.5,1703.1,28.60837065]
[1693408038654,0.51969558,1703.5,1703.1,19.61489]
[1693408039596,0.51969558,1703.5,1703.3,2.0]
[1693408039807,0.51969558,1703.5,1703.4,11.74122]
[1693408040172,0.51969558,1703.5,1703.4,13.702427]
[1693408041302,0.51969558,1703.5,1702.9,2.0]
[1693408041303,9.26343623,1703.5,1702.9,2.0]
[1693408041511,6.38995558,1703.5,1703.1,2.0]
[1693408041713,6.38995558,1703.5,1703.1,7.87144]
[1693408041911,6.38995558,1703.5,1703.1,13.74308]
[1693408042222,0.51969558,1703.5,1703.1,13.74308]
[1693408042373,0.51969558,1703.5,1703.1,21.576198]
[1693408042887,0.51969558,1703.5,1703.1,27.696198]
[1693408043285,0.51969558,1703.5,1703.1,21.576198]
[1693408044180,0.51969558,1703.5,1703.1,27.696198]
[1693408044375,0.51969558,1703.5,1703.3,2.0]
[1693408044604,0.51969558,1703.5,1703.4,11.74122]
[1693408044774,0.51969558,1703.5,1703.4,13.702424]
[1693408045404,0.51969558,1703.5,1703.4,1.961204]
[1693408045593,0.51969558,1703.5,1703.3,13.74154]
[1693408045887,0.51969558,1703.5,1703.3,13.74153]
[1693408046092,0.51969558,1703.5,1703.3,19.61248]
[1693408047108,0.51969558,1703.5,1703.3,22.48596065]
[1693408047476,0.51969558,1703.5,1703.3,19.61248]
[1693408047682,0.51969558,1703.5,1703.4,1.961248]
[1693408047883,0.51969558,1703.5,1703.4,11.74122]
[1693408048380,0.51969558,1703.5,1703.4,23.73183]
[1693408048681,0.51969558,1703.5,1703.4,11.74122]
[1693408049213,0.51969558,1703.5,1703.4,5.87061]
[1693408049378,0.51969558,1703.5,1703.4,11.74122]
[1693408049580,0.51969558,1703.5,1703.4,19.573026]
[1693408049910,0.51969558,1703.5,1703.4,25.693026]
[1693408050097,0.51969558,1703.5,1703.4,29.27011165]
[1693408050413,0.51969558,1703.5,1703.4,26.396631]
[1693408051479,0.51969558,1703.5,1703.4,20.276631]
[1693408052472,0.51969558,1703.5,1703.4,23.15011165]
[1693408052679,0.51969558,1703.5,1703.4,29.27011165]
[1693408054409,0.51969558,1703.5,1703.4,31.28111165]
[1693408055913,0.51969558,1703.5,1703.4,29.27011165]
[1693408056411,0.51969558,1703.5,1703.2,5.87121]
[1693408056614,0.51969558,1703.5,1703.2,5.87128]
[1693408057005,0.51969558,1703.5,1703.2,11.74258]
[1693408057201,0.51969558,1703.5,1703.3,2.0]
[1693408057396,0.51969558,1703.5,1703.3,13.74167]
[1693408057792,0.51969558,1703.5,1703.3,15.702965]
[1693408058587,0.51969558,1703.5,1703.3,7.87072]
[1693408058787,0.51969558,1703.5,1703.2,5.87107]
[1693408059111,0.51969558,1703.5,1703.2,5.87125]
[1693408059486,6.38997558,1703.5,1703.1,11.74288]
[1693408059890,0.51969558,1703.5,1703.1,11.74288]
[1693408060092,6.38997558,1703.5,1703.1,7.857688]
[1693408060307,0.51969558,1703.5,1703.1,7.857688]
[1693408061119,1.12230075,1703.5,1703.2,2.0]
[1693408061318,1.12230075,1703.5,1703.2,7.87127]
[1693408061622,0.51969558,1703.5,1703.2,7.87127]
[1693408061787,1.12230075,1703.5,1703.2,7.87127]
[1693408062388,1.12230075,1703.5,1703.2,5.87127]
[1693408062610,6.99259075,1703.5,1703.1,11.74286]
[1693408062813,6.99259075,1703.5,1703.1,5.8714]
[1693408063014,8.3692346,1703.5,1703.1,5.8714]
[1693408063621,8.3692346,1703.5,1703.0,13.99189]
[1693408063622,0.60260517,1703.4,1703.0,2.0]
[1693408063828,11.74197,1703.3,1702.8,5.87246]
[1693408063990,12.97642752,1703.3,1702.8,5.87246]
[1693408064192,12.97642752,1703.3,1702.7,13.74571]
[1693408064424,21.72092817,1703.3,1702.7,7.87284]
[1693408064704,11.74345,1703.1,1702.7,2.0]
[1693408065033,11.74345,1703.1,1702.7,7.87299]
[1693408065334,11.74345,1703.1,1702.7,2.0]
[1693408065335,13.17915552,1703.1,1702.7,2.0]
[1693408065830,15.19015552,1703.1,1702.6,5.87314]
[1693408066035,23.93544617,1703.1,1702.4,10.42367]
[1693408066330,23.93544617,1703.1,1702.5,5.8736]
[1693408066331,26.17894617,1703.1,1702.5,5.8736]
[1693408066493,26.78155134,1703.1,1702.5,11.74731]
[1693408066828,14.42251513,1703.0,1702.5,5.8736]
[1693408067034,8.55020513,1703.0,1702.5,11.74731]
[1693408067334,2.67815513,1703.0,1702.5,11.74731]
[1693408067535,14.42215513,1703.0,1702.5,11.74731]
[1693408067832,17.29563578,1703.0,1702.4,10.42367]
[1693408068129,5.87279,1702.8,1702.4,2.0]
[1693408068916,0.44257451,1702.7,1702.4,2.0]
[1693408069106,6.31575451,1702.7,1702.4,2.0]
[1693408069603,0.44257451,1702.7,1702.4,7.87405]
[1693408069802,0.44257451,1702.7,1702.4,7.8739]
[1693408070038,0.44257451,1702.7,1702.4,13.74796]
[1693408070439,0.44257451,1702.7,1702.4,11.74796]
[1693408070644,0.44257451,1702.7,1702.4,7.8739]
[1693408070847,6.31559451,1702.7,1702.4,7.8739]
[1693408071245,6.31559451,1702.7,1702.4,2.0]
[1693408071469,6.31559451,1702.7,1702.4,7.87402]
[1693408071752,6.31559451,1702.7,1702.3,5.87413]
[1693408071909,6.31559451,1702.7,1702.3,11.74834]
[1693408072506,6.31559451,1702.7,1702.3,5.87413]
[1693408072708,14.42402896,1702.7,1702.3,5.87413]
[1693408073248,14.42402896,1702.7,1702.3,11.74853]
[1693408073971,0.44257451,1702.7,1702.5,2.0]
[1693408074328,0.44257451,1702.7,1702.6,11.74674]
[1693408080027,0.44257451,1702.7,1702.6,5.87337]
[1693408080873,0.44257451,1702.7,1702.5,2.0]
[1693408080874,6.31559451,1702.7,1702.5,2.0]
[1693408081193,14.22296196,1702.7,1702.3,2.0]
[1693408081490,22.96946261,1702.7,1702.2,5.87449]
[1693408083062,22.96946261,1702.7,1702.2,11.74924]
[1693408083595,22.96946261,1702.7,1702.1,7.87489]
[1693408083795,4.88448065,1702.6,1702.1,2.0]
[1693408083988,17.62164,1702.5,1702.0,0.47658292]
[1693408084297,18.06387334,1702.5,1702.0,5.87542]
[1693408084465,20.38927334,1702.5,1702.0,5.87542]
[1693408084665,23.14634337,1702.5,1702.0,5.87542]
[1693408085066,28.03082402,1702.5,1701.9,11.75124]
[1693408085281,28.03082402,1702.5,1701.9,12.21037165]
[1693408086296,26.01982402,1702.5,1701.9,12.21037165]
[1693408086488,26.01982402,1702.5,1701.9,14.60564142]
[1693408086995,20.14594402,1702.5,1701.9,14.60564142]
[1693408087898,28.03082402,1702.5,1701.9,0.45913165]
[1693408088194,11.74904,1702.3,1701.9,5.87576]
[1693408088407,10.40918402,1702.5,1702.1,2.0]
[1693408088408,2.76763334,1702.5,1702.1,2.0]
[1693408088608,0.44223334,1702.5,1702.4,19.62218]
[1693408088909,32.2281,1702.8,1702.4,19.62218]
[1693408088910,29.98,1702.8,1702.4,21.584398]
[1693408089094,5.87212,1703.0,1702.4,21.584398]
[1693408089476,8.74560065,1703.0,1702.4,15.710338]
[1693408089680,3.74804072,1702.9,1702.3,5.87432]
[1693408089910,11.74579,1702.8,1702.3,11.74859]
[1693408090072,5.87206,1703.0,1702.5,2.0]
[1693408090277,11.74423,1703.0,1702.6,5.87331]
[1693408090475,14.46249035,1703.1,1702.6,11.74668]
[1693408090719,22.56845403,1703.1,1702.6,11.74668]
[1693408090923,17.335971,1703.1,1702.6,11.74668]
[1693408091210,2.2481,1703.1,1702.7,2.0]
[1693408091389,5.2481,1703.1,1702.8,5.87262]
[1693408091990,2.2481,1703.1,1702.8,5.87262]
[1693408093010,8.11978,1703.1,1702.8,5.87262]
[1693408093518,2.2481,1703.1,1702.8,18.992527]
[1693408093822,2.203,1703.3,1702.9,2.0]
[1693408094007,2.203,1703.3,1703.0,5.87175]
[1693408094402,2.203,1703.3,1703.0,11.74374]
[1693408094597,2.203,1703.3,1703.0,13.705315]
[1693408096113,0.001,1703.5,1703.1,2.0]
[1693408096454,0.001,1703.5,1703.2,11.74246]
[1693408096813,0.001,1703.5,1703.2,17.61376]
[1693408097343,0.001,1703.5,1703.2,23.73376]
[1693408097547,0.001,1703.5,1703.3,2.373376]
[1693408097866,0.001,1703.5,1703.3,14.114936]
[1693408098953,0.001,1703.5,1703.3,8.244026]
[1693408099250,0.4175137,1703.4,1703.3,8.244026]
[1693408099616,0.4175137,1703.4,1703.2,11.74231]
[1693408100526,0.4175137,1703.4,1703.2,17.61361]
[1693408101146,0.4175137,1703.4,1703.2,23.73361]
[1693408101514,0.4175137,1703.4,1703.2,17.61361]
[1693408101720,0.4175137,1703.4,1703.2,11.74231]
[1693408101940,0.4175137,1703.4,1703.2,7.6726487]
[1693408102142,0.4175137,1703.4,1703.2,5.87108]
[1693408102356,20.0406037,1703.4,1702.9,2.0]
[1693408102666,5.87134,1703.2,1702.9,7.87232]
[1693408103011,7.88208,1703.3,1702.9,9.6277837]
[1693408103214,6.2881237,1703.4,1702.9,21.3724437]
[1693408103495,12.1589137,1703.4,1702.9,15.5001137]
[1693408104283,12.1589137,1703.4,1703.1,2.0]
[1693408104487,0.4175137,1703.4,1703.2,11.7426]
[1693408104705,0.4175137,1703.4,1703.3,1.17426]
[1693408104855,0.4175137,1703.4,1703.3,14.91616]
[1693408106058,0.4175137,1703.4,1703.3,20.78711]
[1693408106360,0.4175137,1703.4,1703.3,21.204623]
[1693408107394,0.4175137,1703.4,1703.3,13.333673]
[1693408107597,0.4175137,1703.4,1703.3,14.91616]
[1693408108283,0.4175137,1703.4,1703.3,9.04521]
[1693408108472,0.4175137,1703.4,1703.3,7.87095]
[1693408109701,0.4175137,1703.4,1703.3,13.7419]
[1693408109995,0.4175137,1703.4,1703.3,19.61285]
[1693408111190,0.4175137,1703.4,1703.3,13.7419]
[1693408111390,0.4175137,1703.4,1703.3,19.61285]
[1693408111594,0.4175137,1703.4,1703.3,22.161255]
[1693408112256,0.4175137,1703.4,1703.3,28.281255]
[1693408113555,0.4175137,1703.4,1703.3,22.161255]
[1693408114137,0.4175137,1703.4,1703.3,28.281255]
[1693408114486,0.4175137,1703.4,1703.3,22.161255]
[1693408119321,0.4175137,1703.4,1703.3,13.7419]
[1693408122045,0.4175137,1703.4,1703.1,7.87153]
[1693408122233,6.2881237,1703.4,1703.1,2.0]
[1693408122720,0.4175137,1703.4,1703.1,13.74327]
[1693408122920,0.4175137,1703.4,1703.1,19.61491]
[1693408123122,0.4175137,1703.4,1703.2,1.961491]
[1693408123324,0.4175137,1703.4,1703.2,11.74228]
[1693408123522,0.4175137,1703.4,1703.2,5.87101]
[1693408124047,0.4175137,1703.4,1703.1,13.74296]
[1693408125515,0.4175137,1703.4,1703.1,19.6146]
[1693408125849,0.4175137,1703.4,1703.1,25.7346]
[1693408126046,0.4175137,1703.4,1703.2,2.57346]
[1693408126255,0.4175137,1703.4,1703.3,11.7419]
[1693408127224,0.4175137,1703.4,1703.3,19.61285]
[1693408128255,0.4175137,1703.4,1703.3,5.87095]
[1693408128460,6.2881237,1703.4,1703.1,2.0]
[1693408128619,3.50229302,1703.3,1702.9,0.48051886]
[1693408128826,17.6141,1703.2,1702.7,2.0]
[1693408129032,17.6141,1703.2,1702.6,6.33576377]
[1693408129033,20.48758065,1703.2,1702.6,6.33576377]
[1693408129230,2.011,1702.9,1702.3,2.0]
[1693408129436,4.88448065,1702.8,1702.3,2.0]
[1693408129625,2.49944807,1702.7,1702.2,7.87441]
[1693408129844,7.51432872,1702.7,1702.2,2.0]
[1693408130053,14.74702,1702.6,1702.2,7.87473]
[1693408130347,14.74702,1702.6,1702.2,2.0]
[1693408130348,20.62056,1702.6,1702.2,2.0]
[1693408130713,8.50295807,1702.7,1702.3,2.0]
[1693408130917,8.50295807,1702.7,1702.3,7.87415]
[1693408131126,2.1414,1702.7,1702.3,9.836514]
[1693408131349,2.1414,1702.7,1702.3,21.585314]
[1693408131557,2.1414,1702.7,1702.3,15.710914]
[1693408131850,2.1414,1702.7,1702.3,13.74855]
[1693408132069,8.01446,1702.7,1702.3,13.74855]
[1693408132258,8.01446,1702.7,1702.3,7.87415]
[1693408132425,13.88752,1702.7,1702.3,2.0]
[1693408133949,2.1414,1702.7,1702.3,13.74874]
[1693408134155,2.1414,1702.7,1702.3,15.711065]
[1693408134356,2.1414,1702.7,1702.3,21.585465]
[1693408136955,2.3279,1702.9,1702.6,11.7466]
[1693408140764,2.87348065,1702.8,1702.5,5.87343]
[1693408140925,2.87348065,1702.8,1702.3,7.87419]
[1693408141145,11.74604,1702.7,1702.3,2.0]
[1693408141349,1.174604,1702.6,1702.3,2.0]
[1693408141575,11.74742,1702.5,1702.1,2.4815]
[1693408141880,11.74742,1702.5,1701.8,6.97531546]
[1693408141881,2.011,1702.4,1701.8,7.87598]
[1693408142057,20.49461065,1702.5,1701.7,5.87629]
[1693408142058,2.011,1702.2,1701.7,5.87629]
[1693408142381,2.011,1702.2,1701.6,2.0]
[1693408142382,20.49909065,1702.1,1701.6,2.0]
[1693408142744,16.72623065,1702.1,1701.6,2.0]
[1693408142944,10.85097065,1702.1,1701.6,13.75362]
[1693408143150,7.97766,1702.1,1701.6,19.63044]
[1693408143377,2.1024,1702.1,1701.9,11.75156]
[1693408143582,38.85426,1702.4,1702.0,2.0]
[1693408143789,3.185604,1702.6,1702.2,2.0]
[1693408143790,8.87352,1702.6,1702.2,2.0]
[1693408143993,2.1024,1702.5,1702.2,2.0]
[1693408144189,2.1024,1702.5,1702.3,5.8744]
[1693408144992,2.1024,1702.5,1702.2,13.74918]
[1693408145359,2.1024,1702.5,1702.4,2.0]
[1693408145563,11.74649,1702.7,1702.3,5.87417]
[1693408145894,2.142,1702.6,1702.4,2.0]
[1693408146094,14.61997065,1702.7,1702.4,2.0]
[1693408146291,8.01477,1702.8,1702.4,13.74809]
[1693408146502,2.142,1702.8,1702.4,15.710316]
[1693408146659,2.142,1702.8,1702.5,2.0]
[1693408146992,2.142,1702.8,1702.5,13.74712]
[1693408147391,37.86315,1703.0,1702.5,19.62083]
[1693408147392,31.991,1703.0,1702.5,19.62083]
[1693408147559,2.142,1702.9,1702.5,19.62083]
[1693408147892,2.142,1702.9,1702.5,24.8166386]
[1693408148295,53.68141,1703.2,1702.5,32.9476386]
[1693408148711,50.0613,1703.2,1702.7,2.0]
[1693408148913,2.2513,1703.2,1702.8,11.745]
[1693408149091,2.2513,1703.2,1702.8,13.706768]
[1693408149983,5.2513,1703.2,1702.8,13.706768]
[1693408150489,29.98,1703.3,1703.0,2.0]
[1693408150683,29.98,1703.3,1703.1,5.87164]
[1693408150884,2.2513,1703.4,1703.1,5.87164]
[1693408151210,5.2513,1703.4,1703.1,5.87164]
[1693408152180,6.363564,1703.4,1703.1,5.87164]
[1693408152513,22.98928465,1703.4,1703.0,2.0]
[1693408153110,20.97828465,1703.4,1703.0,7.87197]
[1693408153887,2.87348065,1703.3,1703.0,5.87195]
[1693408154089,10.75563065,1703.3,1702.9,5.87227]
[1693408154325,1.07556307,1703.2,1702.9,5.87227]
[1693408154617,1.07556307,1703.2,1702.8,5.87253]
[1693408154794,6.94688307,1703.2,1702.8,5.87253]
[1693408154998,12.81820307,1703.2,1702.8,5.87263]
[1693408155491,6.94688307,1703.2,1702.8,5.87263]
[1693408156088,12.81820307,1703.2,1702.8,5.87263]
[1693408156930,1.28182031,1703.1,1702.7,11.74569]
[1693408157091,11.74432,1703.0,1702.6,2.0]
[1693408157291,17.61648,1703.0,1702.6,2.0]
[1693408157508,17.61648,1703.0,1702.5,5.87351]
[1693408157710,22.50096065,1703.0,1702.4,4.4515]
[1693408157937,22.50096065,1703.0,1702.4,10.32548]
[1693408157938,5.87277,1702.8,1702.4,10.32548]
[1693408158097,5.87277,1702.8,1702.4,4.4515]
[1693408158492,5.87277,1702.8,1702.4,10.32543]
[1693408159121,5.87277,1702.8,1702.4,16.19949]
[1693408159705,8.12260607,1702.9,1702.4,16.19949]
[1693408159907,11.05267,1703.1,1702.7,5.87295]
[1693408160111,16.92452,1703.1,1702.7,5.87295]
[1693408161226,5.1809,1703.1,1702.7,11.74597]
[1693408161599,2.1809,1703.1,1702.9,7.87215]
[1693408162301,29.981,1703.5,1702.9,25.73681]
[1693408162502,29.981,1703.5,1703.2,2.0]
[1693408162735,0.001,1703.5,1703.3,5.87095]
[1693408162918,5.87126,1703.5,1703.2,13.74242]
[1693408163317,5.87126,1703.5,1703.2,7.87121]
[1693408163521,16.01993065,1703.5,1703.2,2.0]
[1693408163796,2.87348065,1703.4,1702.9,14.16777]
[1693408163999,2.87348065,1703.4,1702.9,8.29553]
[1693408164000,11.74224,1703.3,1702.9,8.29553]
[1693408164235,11.74224,1703.3,1702.8,13.745]
[1693408164544,13.92404,1703.3,1702.8,13.745]
[1693408164850,16.39197306,1703.3,1702.8,13.745]
[1693408165201,2.1818,1703.3,1702.8,19.61768]
[1693408165907,2.1818,1703.3,1702.8,21.62868]
[1693408166114,7.27636,1703.5,1703.2,5.87123]
[1693408166115,5.87128,1703.5,1703.2,5.87123]
[1693408166311,10.92656065,1703.5,1703.2,5.87123]
[1693408167820,16.79684065,1703.5,1703.2,5.87123]
[1693408168026,1.67968407,1703.4,1703.2,5.87123]
[1693408168227,16.79684065,1703.5,1703.2,5.87123]
[1693408168648,16.79684065,1703.5,1703.0,5.87184]
[1693408168957,16.79684065,1703.5,1702.9,7.87223]
[1693408168958,2.87348065,1703.4,1702.9,13.7443]
[1693408169244,5.87109,1703.3,1702.9,13.7443]
[1693408170252,14.61514065,1703.4,1702.9,13.7443]
[1693408170448,5.87082,1703.4,1703.0,1.37443]
[1693408170609,8.05308,1703.5,1703.1,7.87157]
[1693408170814,16.79704065,1703.5,1703.1,7.87157]
[1693408171214,16.79704065,1703.5,1703.1,5.87157]
[1693408172410,13.92356,1703.5,1703.1,13.74321]
[1693408172615,13.92356,1703.5,1703.1,5.87157]
[1693408172945,15.96339791,1703.5,1703.0,15.64589]
[1693408173110,13.92356,1703.5,1703.0,15.64589]
[1693408174144,8.05308,1703.5,1703.1,13.74305]
[1693408174954,16.79696065,1703.5,1703.1,7.87141]
[1693408176370,16.79696065,1703.5,1703.1,13.74305]
[1693408176756,16.79696065,1703.5,1703.1,7.87141]
[1693408176958,1.67969607,1703.4,1703.0,8.39962]
[1693408177163,5.87102,1703.3,1703.0,2.5279]
[1693408177540,22.49754065,1703.3,1702.7,5.8728]
[1693408177869,22.49754065,1703.3,1702.7,2.4675]
[1693408177870,2.011,1703.1,1702.7,2.4675]
[1693408178170,13.75456,1703.1,1702.7,2.4675]
[1693408178369,22.49995065,1703.1,1702.7,2.4675]
[1693408178671,16.62804065,1703.1,1702.6,2.0]
[1693408178835,16.62804065,1703.1,1702.6,7.87325]
[1693408179031,16.44300047,1703.1,1702.6,13.74662]
[1693408179331,8.00661,1703.2,1702.8,2.0]
[1693408179549,8.87106,1703.3,1702.8,11.74496]
[1693408179868,8.05436,1703.4,1703.0,11.74354]
[1693408180066,2.1836,1703.4,1703.0,11.74354]
[1693408180269,5.1836,1703.4,1703.0,11.74354]
[1693408180474,5.1836,1703.4,1703.0,13.705112]
[1693408181068,2.87348065,1703.3,1702.9,2.0]
[1693408181310,11.7427,1703.2,1702.9,2.0]
[1693408181573,2.87348065,1703.1,1702.7,7.87291]
[1693408181760,5.87205,1703.0,1702.7,2.0]
[1693408181971,5.87205,1703.0,1702.6,11.74644]
[1693408182143,5.87205,1703.0,1702.6,8.08567]
[1693408182532,5.87205,1703.0,1702.6,13.95881]
[1693408184434,5.87205,1703.0,1702.6,8.08567]
[1693408184638,11.7441,1703.0,1702.6,8.08567]
[1693408184839,11.7441,1703.0,1702.5,10.37872]
[1693408185082,22.50063065,1703.0,1702.5,4.5052]
[1693408185275,2.87348065,1702.9,1702.5,4.5052]
[1693408185582,14.61848065,1702.9,1702.5,10.37887]
[1693408185889,16.86863372,1702.9,1702.5,10.37887]
[1693408186395,7.88305,1703.0,1702.5,16.25258]
[1693408186693,14.61769065,1703.0,1702.5,16.25258]
[1693408189458,5.87205,1703.0,1702.5,22.12629]
[1693408190297,13.92728,1703.1,1702.5,22.12629]
[1693408190475,16.80076065,1703.1,1702.5,22.12629]
[1693408190678,16.80076065,1703.1,1702.6,2.212629]
[1693408190875,16.80076065,1703.1,1702.7,5.87294]
[1693408191172,10.92889065,1703.1,1702.7,5.87294]
[1693408191373,10.92886065,1703.1,1702.7,11.74596]
[1693408191573,2.1836,1703.1,1702.7,17.61898]
[1693408191801,2.1836,1703.1,1702.9,5.87233]
[1693408192368,3.60637656,1703.2,1702.9,5.87233]
[1693408192565,9.47775656,1703.2,1702.9,5.87233]
[1693408193204,3.60637656,1703.2,1702.9,11.74466]
[1693408193376,3.60637656,1703.2,1702.8,13.74487]
[1693408193574,18.3989357,1703.2,1702.7,5.87286]
[1693408193802,18.3989357,1703.2,1702.8,2.0]
[1693408194007,24.2704957,1703.2,1702.8,2.0]
[1693408194210,24.2704957,1703.2,1702.7,5.87286]
[1693408194614,2.87348065,1703.1,1702.7,5.87286]
[1693408194919,5.87205,1703.0,1702.6,15.958939]
[1693408195284,5.87205,1703.0,1702.6,10.085779]
[1693408195813,5.87205,1703.0,1702.6,15.959149]
[1693408196599,15.34931656,1703.2,1702.8,7.87251]
[1693408196807,0.60637656,1703.2,1702.8,19.61787]
[1693408197013,0.60637656,1703.2,1702.9,7.833907]
[1693408197589,6.47771656,1703.2,1702.9,5.87212]
[1693408198211,5.87134,1703.2,1702.9,5.87212]
[1693408198522,6.47742656,1703.3,1702.9,11.74445]
[1693408198727,15.22203721,1703.3,1702.9,5.87212]
[1693408199017,16.13160206,1703.3,1702.9,5.87212]
[1693408199307,15.22203721,1703.3,1702.9,5.87212]
[1693408200176,15.22203721,1703.3,1702.9,7.24658]
[1693408200177,0.60637656,1703.3,1702.9,7.24658]
[1693408200382,0.60637656,1703.3,1702.9,21.46354]
[1693408201939,0.82034998,1703.3,1702.9,21.46354]
[1693408202362,6.69131998,1703.3,1702.9,15.59121]
[1693408202512,6.47734656,1703.3,1702.9,15.59121]
[1693408202825,0.60637656,1703.3,1703.0,1.559121]
[1693408203017,0.60637656,1703.3,1703.1,5.87164]
[1693408203425,0.82022725,1703.3,1703.1,5.87164]
[1693408203643,0.60637656,1703.3,1703.1,5.87164]
[1693408203801,0.60637656,1703.3,1703.1,7.87164]
[1693408204410,6.69117483,1703.3,1703.0,5.87179]
[1693408204611,12.34833656,1703.3,1702.9,11.71898]
[1693408204847,17.34992035,1703.3,1702.9,2.4723]
[1693408205140,25.23190035,1703.3,1702.7,7.87284]
[1693408205301,25.23190035,1703.3,1702.7,10.43954]
[1693408205505,11.74349,1703.1,1702.7,10.43954]
[1693408206744,2.74907656,1703.2,1702.7,16.31256]
[1693408206947,1.51594141,1703.3,1702.8,1.631256]
[1693408207169,4.72973673,1703.3,1702.9,11.74439]
[1693408207326,3.60637656,1703.3,1702.9,11.74439]
[1693408207659,4.51594141,1703.3,1702.9,11.74439]
[1693408208229,0.60637656,1703.3,1702.9,19.61672]
[1693408208417,6.69112844,1703.3,1702.9,15.8691876]
[1693408208619,0.60637656,1703.3,1702.9,21.7415176]
[1693408208819,0.82012215,1703.3,1702.9,21.7415176]
[1693408210418,0.82012215,1703.3,1702.9,15.8691876]
[1693408210636,22.342577,1703.3,1702.9,2.0]
[1693408210950,22.12883141,1703.3,1702.9,2.0]
[1693408211275,4.51594141,1703.3,1702.9,2.0]
[1693408211438,0.60637656,1703.3,1702.9,13.74448]
[1693408211633,0.82015446,1703.3,1702.9,13.74448]
[1693408211971,6.69112446,1703.3,1702.9,7.87215]
[1693408212126,6.47734656,1703.3,1702.9,7.87215]
[1693408213642,6.47734656,1703.3,1702.9,13.74448]
[1693408217833,0.60637656,1703.3,1703.1,2.0]
[1693408218063,0.60637656,1703.3,1703.1,13.743]
[1693408218247,0.60637656,1703.3,1703.1,15.704498]
[1693408219033,1.51594141,1703.4,1703.1,15.704498]
[1693408219235,0.60637656,1703.4,1703.3,2.0]
[1693408219434,0.91056485,1703.5,1703.3,2.0]
[1693408219435,0.001,1703.5,1703.3,2.0]
[1693408219639,0.001,1703.5,1703.3,25.73285]
[1693408219958,0.001,1703.5,1703.4,2.573285]
[1693408220254,0.001,1703.5,1703.4,14.314505]
[1693408221034,0.001,1703.5,1703.4,26.305115]
[1693408222058,0.001,1703.5,1703.4,28.316115]
[1693408222367,0.001,1703.5,1703.4,31.18959565]
[1693408222526,0.001,1703.5,1703.4,31.66959565]
[1693408223128,0.101,1703.7,1703.6,8.12]
[1693408223328,0.101,1703.7,1703.6,37.79726065]
[1693408225939,0.101,1703.7,1703.6,40.79726065]
[1693408226958,0.101,1703.9,1703.8,8.12]
[1693408227137,0.101,1703.9,1703.8,42.35063065]
[1693408227341,1.036906,1704.2,1704.1,25.7246]
[1693408227546,1.036906,1704.2,1704.1,28.883893]
[1693408227768,1.036906,1704.2,1704.1,33.76837365]
[1693408228547,0.101,1704.6,1704.4,2.0]
[1693408228743,0.101,1704.6,1704.5,5.86682]
[1693408229142,0.101,1704.6,1704.5,13.73364]
[1693408229337,0.101,1704.6,1704.5,1.960051]
[1693408229540,0.101,1704.6,1704.4,5.86687]
[1693408229748,0.101,1704.6,1704.3,7.86732]
[1693408229947,0.101,1704.6,1704.4,5.86709]
[1693408230372,0.101,1704.6,1704.3,7.8673]
[1693408230566,5.96751,1704.6,1704.3,7.8673]
[1693408232176,5.96751,1704.6,1704.4,2.0]
[1693408232177,0.101,1704.6,1704.4,2.0]
[1693408232376,0.101,1704.6,1704.5,5.86682]
[1693408232674,0.101,1704.6,1704.5,11.73364]
[1693408232876,0.101,1704.6,1704.5,17.60046]
[1693408233979,0.92017041,1704.6,1704.5,17.60046]
[1693408234184,0.101,1704.6,1704.5,20.373606]
[1693408235147,0.101,1704.6,1704.5,29.36708665]
[1693408236189,0.101,1704.6,1704.5,34.37808665]
[1693408236395,0.101,1704.6,1704.5,36.86908665]
[1693408236704,29.9857253,1705.1,1704.9,2.0]
[1693408236902,0.0057253,1705.1,1705.0,13.7412]
[1693408237199,0.0057253,1705.1,1705.0,19.755938]